[Event "Live Chess"]
[Site "Chess.com"]
[Date "2021.02.28"]
[Round "-"]
[White "McKinnon, Scott"]
[Black "Doris, Peter J"]
[Result "0-1"]
[BlackElo "1508"]
[CurrentPosition "8/8/8/1p6/p3n3/PP1K4/3r4/3kq3 w - -"]
[ECO "C02"]
[ECOUrl "https://www.chess.com/openings/French-Defense-Advance-Variation-3...c5-4.c3"]
[EndDate "2021.02.28"]
[EndTime "11:56:57"]
[Link "https://www.chess.com/live/game/8249654415"]
[StartTime "11:12:42"]
[Termination "Stoic1 won by checkmate"]
[TimeControl "1500+10"]
[Timezone "UTC"]
[UTCDate "2021.02.28"]
[UTCTime "11:12:42"]
[WhiteElo "1491"]

1. e4 { [%clk 0:25:10] } 1... e6 { [%clk 0:25:10] } 2. d4 { [%clk 0:25:16.6] } 2... d5 { [%clk 0:25:12.7] } 3. e5 { [%clk 0:25:25.3] } 3... c5 { [%clk 0:25:00.8] } 4. c3 { [%clk 0:25:33.3] } 4... Ne7 { [%clk 0:25:08.6] } 5. Na3 { [%clk 0:25:31.6] } 5... Nec6 { [%clk 0:25:12.4] } 6. Nf3 { [%clk 0:25:00.7] } 6... b6 { [%clk 0:24:21.7] } 7. Bg5 { [%clk 0:24:43.6] } 7... Qd7 { [%clk 0:23:34.9] } 8. Be2 { [%clk 0:22:35.6] } 8... Ba6 { [%clk 0:23:37.4] } 9. Bxa6 { [%clk 0:22:41.9] } 9... Nxa6 { [%clk 0:23:43.2] } 10. O-O { [%clk 0:22:46.1] } 10... Nc7 { [%clk 0:23:37.1] } 11. Nc2 { [%clk 0:21:53.4] } 11... a5 { [%clk 0:23:08.1] } 12. Ne3 { [%clk 0:21:37.1] } 12... b5 { [%clk 0:22:08.8] } 13. a3 { [%clk 0:21:13] } 13... a4 { [%clk 0:21:56.2] } 14. Nh4 { [%clk 0:20:41.5] } 14... h6 { [%clk 0:21:36.4] } 15. Qh5 { [%clk 0:20:28.6] } 15... Rg8 { [%clk 0:21:21.5] } 16. Ng4 { [%clk 0:20:13.6] } 16... hxg5 { [%clk 0:21:19.4] } 17. Nf3 { [%clk 0:20:16.8] } 17... O-O-O { [%clk 0:20:37.5] } 18. Nxg5 { [%clk 0:20:18.9] } 18... g6 { [%clk 0:19:21.5] } 19. Qh3 { [%clk 0:19:51.4] } 19... Ne8 { [%clk 0:18:35.8] } 20. Qf3 { [%clk 0:19:45.3] } 20... Rg7 { [%clk 0:17:40.1] } 21. Nf6 { [%clk 0:19:36.8] } 21... Nxf6 { [%clk 0:17:44.6] } 22. Qxf6 { [%clk 0:19:46.7] } 22... Qe7 { [%clk 0:17:36] } 23. dxc5 { [%clk 0:18:57.1] } 23... Qc7 { [%clk 0:15:56.9] } 24. Rad1 { [%clk 0:17:48.6] } 24... Qxe5 { [%clk 0:15:47.9] } 25. Qxe5 { [%clk 0:17:53.5] } 25... Nxe5 { [%clk 0:15:55] } 26. Rfe1 { [%clk 0:17:01.5] } 26... Nc4 { [%clk 0:15:51.2] } 27. Re2 { [%clk 0:17:01.8] } 27... Be7 { [%clk 0:15:50.9] } 28. Nf3 { [%clk 0:16:55.8] } 28... Bxc5 { [%clk 0:15:47.4] } 29. Nd4 { [%clk 0:16:47.9] } 29... Bxd4 { [%clk 0:15:54.5] } 30. Rxd4 { [%clk 0:16:57.8] } 30... e5 { [%clk 0:15:31.1] } 31. Rh4 { [%clk 0:17:01.6] } 31... Rdg8 { [%clk 0:15:06.9] } 32. f4 { [%clk 0:16:54.5] } 32... e4 { [%clk 0:15:02.7] } 33. Rg4 { [%clk 0:16:41.8] } 33... f5 { [%clk 0:15:02.3] } 34. Rh4 { [%clk 0:16:28.2] } 34... Kd7 { [%clk 0:14:43.9] } 35. Kf1 { [%clk 0:16:33] } 35... Kd6 { [%clk 0:14:48.7] } 36. Ke1 { [%clk 0:16:40.2] } 36... Kc5 { [%clk 0:14:53.9] } 37. Kd1 { [%clk 0:16:49.2] } 37... d4 { [%clk 0:14:54.3] } 38. cxd4+ { [%clk 0:16:51.6] } 38... Kxd4 { [%clk 0:15:02.3] } 39. Rh3 { [%clk 0:16:56.7] } 39... g5 { [%clk 0:14:35.2] } 40. fxg5 { [%clk 0:17:00.8] } 40... Rxg5 { [%clk 0:14:42.9] } 41. g3 { [%clk 0:17:02.3] } 41... Rd8 { [%clk 0:14:32.8] } 42. Kc2 { [%clk 0:17:09.1] } 42... Ne3+ { [%clk 0:14:09.1] } 43. Kb1 { [%clk 0:16:40.3] } 43... Kd3 { [%clk 0:13:57.9] } 44. Rf2 { [%clk 0:16:37.8] } 44... Ng4 { [%clk 0:13:45.5] } 45. Rf1 { [%clk 0:16:42.5] } 45... Ke2 { [%clk 0:13:19.4] } 46. Rc1 { [%clk 0:16:19.5] } 46... Rd1 { [%clk 0:13:19.6] } 47. Rxd1 { [%clk 0:16:28.1] } 47... Kxd1 { [%clk 0:13:27.2] } 48. Rh8 { [%clk 0:16:29.2] } 48... e3 { [%clk 0:13:26] } 49. Rd8+ { [%clk 0:16:23] } 49... Ke1 { [%clk 0:13:22] } 50. Kc2 { [%clk 0:16:20.4] } 50... Nxh2 { [%clk 0:13:13.6] } 51. Re8 { [%clk 0:16:25.7] } 51... e2 { [%clk 0:13:08.4] } 52. Re3 { [%clk 0:16:26.6] } 52... Nf1 { [%clk 0:12:40.9] } 53. Rf3 { [%clk 0:16:28] } 53... Nxg3 { [%clk 0:12:28.8] } 54. Re3 { [%clk 0:16:19] } 54... Ne4 { [%clk 0:12:02.9] } 55. Kd3 { [%clk 0:16:18] } 55... Rg2 { [%clk 0:12:05.3] } 56. Rf3 { [%clk 0:15:59.8] } 56... Kd1 { [%clk 0:11:49] } 57. Rxf5 { [%clk 0:15:49.9] } 57... e1=Q { [%clk 0:11:49.8] } 58. Rf2 { [%clk 0:14:03.1] } 58... Rxf2 { [%clk 0:11:42.5] } 59. b3 { [%clk 0:14:09.8] } 59... Rd2# { [%clk 0:11:45.4] } 0-1

[Event "Live Chess"]
[Site "Chess.com"]
[Date "2021.02.28"]
[Round "-"]
[White "Campbell, Duncan A F"]
[Black "Nahapetyan, Narek "]
[Result "0-1"]
[BlackElo "1732"]
[CurrentPosition "8/8/8/6pk/1R6/8/4rp1p/7K w - -"]
[ECO "C30"]
[ECOUrl "https://www.chess.com/openings/Kings-Gambit"]
[EndDate "2021.02.28"]
[EndTime "14:41:46"]
[Link "https://www.chess.com/live/game/8259831919"]
[StartTime "13:59:52"]
[Termination "NarekNahapetyan won by resignation"]
[TimeControl "1500+10"]
[Timezone "UTC"]
[UTCDate "2021.02.28"]
[UTCTime "13:59:52"]
[WhiteElo "1387"]

1. e4 { [%clk 0:25:10] } 1... e5 { [%clk 0:25:10] } 2. f4 { [%clk 0:25:16.6] } 2... d6 { [%clk 0:25:17.4] } 3. Nf3 { [%clk 0:25:18.1] } 3... Nc6 { [%clk 0:25:23.1] } 4. d4 { [%clk 0:25:08.9] } 4... exd4 { [%clk 0:25:27.2] } 5. Nxd4 { [%clk 0:25:10.3] } 5... Nf6 { [%clk 0:25:29.1] } 6. Nc3 { [%clk 0:25:04.4] } 6... Be7 { [%clk 0:25:22.2] } 7. Bb5 { [%clk 0:22:36.3] } 7... Bd7 { [%clk 0:25:29.8] } 8. O-O { [%clk 0:22:33.7] } 8... O-O { [%clk 0:25:38.5] } 9. Be3 { [%clk 0:20:07.6] } 9... Nxd4 { [%clk 0:25:00.5] } 10. Bxd4 { [%clk 0:20:09.4] } 10... Bxb5 { [%clk 0:25:09] } 11. Nxb5 { [%clk 0:20:17.4] } 11... Nxe4 { [%clk 0:25:18] } 12. Re1 { [%clk 0:17:12.3] } 12... d5 { [%clk 0:25:04.5] } 13. Qg4 { [%clk 0:15:52.7] } 13... Bf6 { [%clk 0:24:41] } 14. Rad1 { [%clk 0:15:10.8] } 14... c6 { [%clk 0:23:36.8] } 15. Nc3 { [%clk 0:13:29.4] } 15... Bxd4+ { [%clk 0:22:54.9] } 16. Rxd4 { [%clk 0:13:35.4] } 16... Qb6 { [%clk 0:22:42.3] } 17. Rd1 { [%clk 0:12:26.7] } 17... Qxb2 { [%clk 0:22:13.3] } 18. Nxe4 { [%clk 0:12:18.6] } 18... dxe4 { [%clk 0:22:20.4] } 19. Rxe4 { [%clk 0:10:45.1] } 19... Qxc2 { [%clk 0:22:21.6] } 20. Qe2 { [%clk 0:10:47.7] } 20... Qc5+ { [%clk 0:21:45.1] } 21. Kf1 { [%clk 0:10:33.1] } 21... h6 { [%clk 0:21:48] } 22. Re7 { [%clk 0:10:24.7] } 22... b5 { [%clk 0:21:22.6] } 23. Rdd7 { [%clk 0:10:19.9] } 23... Qc1+ { [%clk 0:21:18.6] } 24. Kf2 { [%clk 0:10:01.1] } 24... Qxf4+ { [%clk 0:21:26.7] } 25. Qf3 { [%clk 0:10:08.6] } 25... Qh4+ { [%clk 0:20:45.8] } 26. Kf1 { [%clk 0:10:06.2] } 26... Qc4+ { [%clk 0:20:52.7] } 27. Qe2 { [%clk 0:10:10.7] } 27... Qxe2+ { [%clk 0:20:54.4] } 28. Kxe2 { [%clk 0:10:18.3] } 28... Rfe8 { [%clk 0:20:47.2] } 29. Kf3 { [%clk 0:10:25.5] } 29... Rxe7 { [%clk 0:20:53.3] } 30. Rxe7 { [%clk 0:10:33.8] } 30... a5 { [%clk 0:21:01.7] } 31. Rc7 { [%clk 0:10:42.2] } 31... Ra6 { [%clk 0:21:09.8] } 32. Ke4 { [%clk 0:10:47.6] } 32... b4 { [%clk 0:21:18.6] } 33. Kd4 { [%clk 0:10:55.4] } 33... a4 { [%clk 0:21:03.8] } 34. Kc4 { [%clk 0:10:58.9] } 34... b3 { [%clk 0:21:09.6] } 35. axb3 { [%clk 0:11:05.8] } 35... axb3 { [%clk 0:21:18.7] } 36. Kxb3 { [%clk 0:11:14.2] } 36... Rb6+ { [%clk 0:21:27.7] } 37. Kc3 { [%clk 0:11:20.4] } 37... Rb1 { [%clk 0:21:28.8] } 38. Kd2 { [%clk 0:10:56.6] } 38... Rg1 { [%clk 0:21:33.7] } 39. g3 { [%clk 0:11:03.1] } 39... Rg2+ { [%clk 0:21:42.4] } 40. Ke3 { [%clk 0:11:10.5] } 40... Rc2 { [%clk 0:21:43.7] } 41. h4 { [%clk 0:11:12.2] } 41... c5 { [%clk 0:21:47.9] } 42. Kd3 { [%clk 0:11:05] } 42... Rg2 { [%clk 0:21:53.2] } 43. Rxc5 { [%clk 0:11:11.3] } 43... Rxg3+ { [%clk 0:22:02] } 44. Ke2 { [%clk 0:11:16.2] } 44... Rg4 { [%clk 0:22:10] } 45. Rc8+ { [%clk 0:10:24.4] } 45... Kh7 { [%clk 0:22:05.5] } 46. Rc7 { [%clk 0:10:32.3] } 46... f6 { [%clk 0:22:07.3] } 47. Kf3 { [%clk 0:10:27.7] } 47... Rxh4 { [%clk 0:22:10.9] } 48. Kg3 { [%clk 0:10:36.1] } 48... Re4 { [%clk 0:22:16.7] } 49. Kf3 { [%clk 0:10:42.9] } 49... Ra4 { [%clk 0:22:23.2] } 50. Kg3 { [%clk 0:10:50.3] } 50... Kg6 { [%clk 0:22:28.9] } 51. Rb7 { [%clk 0:10:56.3] } 51... h5 { [%clk 0:22:33.4] } 52. Kh3 { [%clk 0:11:02.8] } 52... f5 { [%clk 0:22:38.4] } 53. Kg3 { [%clk 0:10:56.7] } 53... Ra3+ { [%clk 0:22:21.8] } 54. Kh4 { [%clk 0:10:53.7] } 54... Ra4+ { [%clk 0:22:30.4] } 55. Kg3 { [%clk 0:11:01.7] } 55... Rd4 { [%clk 0:22:37.7] } 56. Ra7 { [%clk 0:11:01.7] } 56... Rd6 { [%clk 0:22:44.1] } 57. Kh4 { [%clk 0:11:03.1] } 57... Kh6 { [%clk 0:21:47.3] } 58. Kg3 { [%clk 0:10:56.5] } 58... g5 { [%clk 0:21:52.3] } 59. Rb7 { [%clk 0:11:00.6] } 59... h4+ { [%clk 0:21:58.5] } 60. Kh3 { [%clk 0:11:01] } 60... Rd3+ { [%clk 0:22:04.3] } 61. Kg2 { [%clk 0:11:08.9] } 61... Kh5 { [%clk 0:22:13.1] } 62. Rb5 { [%clk 0:11:11.8] } 62... Kg4 { [%clk 0:22:18.9] } 63. Rb4+ { [%clk 0:11:16.1] } 63... f4 { [%clk 0:22:27.8] } 64. Rb5 { [%clk 0:11:24.3] } 64... h3+ { [%clk 0:22:31.7] } 65. Kh2 { [%clk 0:11:31] } 65... Rd2+ { [%clk 0:22:39.8] } 66. Kh1 { [%clk 0:11:34.8] } 66... f3 { [%clk 0:22:33.9] } 67. Kg1 { [%clk 0:11:40.7] } 67... h2+ { [%clk 0:22:34.3] } 68. Kh1 { [%clk 0:11:45.6] } 68... f2 { [%clk 0:22:41.8] } 69. Rb1 { [%clk 0:11:43] } 69... Kg3 { [%clk 0:22:38.2] } 70. Rb3+ { [%clk 0:11:46.5] } 70... Kg4 { [%clk 0:22:40.1] } 71. Rb1 { [%clk 0:11:38.5] } 71... Re2 { [%clk 0:21:53.7] } 72. Rb4+ { [%clk 0:11:17.9] } 72... Kh5 { [%clk 0:21:40.4] } 0-1

[Event "Live Chess"]
[Site "Chess.com"]
[Date "2021.02.28"]
[Round "-"]
[White "Ley P., Chihon"]
[Black "Coates, Sam"]
[Result "0-1"]
[BlackElo "1651"]
[CurrentPosition "5r1k/2p4p/1p1pR1pQ/p2Pb3/P1P5/1P6/8/5q1K w - -"]
[ECO "A16"]
[ECOUrl "https://www.chess.com/openings/English-Opening-Anglo-Indian-Queens-Knight-Variation-2...g6-3.g3"]
[EndDate "2021.02.28"]
[EndTime "14:58:50"]
[Link "https://www.chess.com/live/game/8259831605"]
[StartTime "13:59:39"]
[Termination "DrForkster won by checkmate"]
[TimeControl "1500+10"]
[Timezone "UTC"]
[UTCDate "2021.02.28"]
[UTCTime "13:59:39"]
[WhiteElo "1696"]

1. c4 { [%clk 0:25:10] } 1... Nf6 { [%clk 0:25:10] } 2. Nc3 { [%clk 0:25:16.7] } 2... g6 { [%clk 0:25:00.6] } 3. g3 { [%clk 0:25:23.9] } 3... Bg7 { [%clk 0:25:08.6] } 4. e4 { [%clk 0:25:28.4] } 4... d6 { [%clk 0:25:12.5] } 5. Bg2 { [%clk 0:25:28.4] } 5... O-O { [%clk 0:25:11.4] } 6. Nge2 { [%clk 0:25:35.2] } 6... e5 { [%clk 0:25:05.9] } 7. h3 { [%clk 0:25:15.7] } 7... Nc6 { [%clk 0:25:10] } 8. O-O { [%clk 0:25:18.5] } 8... Be6 { [%clk 0:25:09.5] } 9. Nd5 { [%clk 0:25:25.5] } 9... Qd7 { [%clk 0:24:46.3] } 10. Kh2 { [%clk 0:25:31.8] } 10... a5 { [%clk 0:21:54.7] } 11. d3 { [%clk 0:25:24.4] } 11... Ne8 { [%clk 0:21:01.4] } 12. f4 { [%clk 0:23:33.2] } 12... f5 { [%clk 0:20:51.8] } 13. exf5 { [%clk 0:23:27.9] } 13... Bxf5 { [%clk 0:17:55] } 14. Rb1 { [%clk 0:22:39.4] } 14... Nf6 { [%clk 0:16:35.9] } 15. Nxf6+ { [%clk 0:21:45.9] } 15... Rxf6 { [%clk 0:15:25.6] } 16. Nc3 { [%clk 0:21:08.7] } 16... Raf8 { [%clk 0:14:22.5] } 17. Nd5 { [%clk 0:21:13.7] } 17... R6f7 { [%clk 0:14:29.7] } 18. Be3 { [%clk 0:19:54.8] } 18... exf4 { [%clk 0:13:58.7] } 19. Bxf4 { [%clk 0:20:04.7] } 19... Ne5 { [%clk 0:11:34.5] } 20. Bxe5 { [%clk 0:18:13.8] } 20... Bxe5 { [%clk 0:11:38.9] } 21. Qd2 { [%clk 0:16:05.8] } 21... b6 { [%clk 0:11:13.4] } 22. Rbe1 { [%clk 0:15:25.3] } 22... Be6 { [%clk 0:08:35.1] } 23. Rxf7 { [%clk 0:15:11.4] } 23... Rxf7 { [%clk 0:08:40] } 24. d4 { [%clk 0:12:03.9] } 24... Bg7 { [%clk 0:08:33.5] } 25. b3 { [%clk 0:12:02.3] } 25... Rf8 { [%clk 0:04:36.3] } 26. Nf4 { [%clk 0:11:28.4] } 26... Bf7 { [%clk 0:04:19.8] } 27. Ne6 { [%clk 0:06:00.5] } 27... Bxe6 { [%clk 0:03:26.2] } 28. Rxe6 { [%clk 0:06:03] } 28... Kh8 { [%clk 0:01:33.5] } 29. d5 { [%clk 0:05:59.2] } 29... Be5 { [%clk 0:01:29.4] } 30. h4 { [%clk 0:04:43.5] } 30... Qd8 { [%clk 0:00:52.7] } 31. a4 { [%clk 0:03:35.8] } 31... Qxh4+ { [%clk 0:00:52.8] } 32. Kg1 { [%clk 0:03:41.6] } 32... Qxg3 { [%clk 0:00:57.1] } 33. Qh6 { [%clk 0:01:27.7] } 33... Qf2+ { [%clk 0:00:58.3] } 34. Kh1 { [%clk 0:01:28.8] } 34... Qe1+ { [%clk 0:01:02.1] } 35. Bf1 { [%clk 0:01:36.4] } 35... Qxf1# { [%clk 0:01:10.2] } 0-1

[Event "Live Chess"]
[Site "Chess.com"]
[Date "2021.02.28"]
[Round "-"]
[White "Harvey, Stephen David"]
[Black "James, William"]
[Result "0-1"]
[BlackElo "1632"]
[CurrentPosition "8/3R1pk1/p1r2p1p/Pp6/1P6/2n4P/6K1/8 w - -"]
[ECO "B50"]
[ECOUrl "https://www.chess.com/openings/Sicilian-Defense-2.Nf3-d6"]
[EndDate "2021.02.28"]
[EndTime "14:45:28"]
[Link "https://www.chess.com/live/game/8259838295"]
[StartTime "14:00:18"]
[Termination "doman85 won by resignation"]
[TimeControl "1500+10"]
[Timezone "UTC"]
[UTCDate "2021.02.28"]
[UTCTime "14:00:18"]
[WhiteElo "1441"]

1. e4 { [%clk 0:25:10] } 1... c5 { [%clk 0:25:10] } 2. Nf3 { [%clk 0:25:15.3] } 2... d6 { [%clk 0:25:12.7] } 3. d3 { [%clk 0:25:21.5] } 3... Nc6 { [%clk 0:25:16.3] } 4. g3 { [%clk 0:25:28.8] } 4... Bg4 { [%clk 0:25:13.9] } 5. Bg2 { [%clk 0:25:27.2] } 5... g6 { [%clk 0:25:05.1] } 6. h3 { [%clk 0:25:22.8] } 6... Bxf3 { [%clk 0:25:00.5] } 7. Bxf3 { [%clk 0:25:30] } 7... Bg7 { [%clk 0:24:45.2] } 8. c3 { [%clk 0:25:34.8] } 8... Nf6 { [%clk 0:24:04.2] } 9. O-O { [%clk 0:25:09] } 9... Qd7 { [%clk 0:23:29.1] } 10. Bg2 { [%clk 0:25:13.2] } 10... O-O { [%clk 0:23:22.2] } 11. a4 { [%clk 0:25:12] } 11... a6 { [%clk 0:23:09.3] } 12. Nd2 { [%clk 0:25:05.7] } 12... b5 { [%clk 0:22:59.5] } 13. Nf3 { [%clk 0:24:24.7] } 13... c4 { [%clk 0:21:35.5] } 14. Bg5 { [%clk 0:23:18.9] } 14... cxd3 { [%clk 0:21:18.2] } 15. Qxd3 { [%clk 0:23:23.3] } 15... Rab8 { [%clk 0:20:27.3] } 16. a5 { [%clk 0:19:31.4] } 16... Qc7 { [%clk 0:18:31.7] } 17. b4 { [%clk 0:19:22.1] } 17... Nd7 { [%clk 0:18:19.3] } 18. Rac1 { [%clk 0:17:29.4] } 18... Nce5 { [%clk 0:18:12.7] } 19. Nxe5 { [%clk 0:17:32.7] } 19... Nxe5 { [%clk 0:18:18.1] } 20. Qe2 { [%clk 0:16:12.8] } 20... Rbc8 { [%clk 0:17:53.5] } 21. f4 { [%clk 0:13:46.5] } 21... Nc4 { [%clk 0:17:53.7] } 22. f5 { [%clk 0:13:28.6] } 22... h6 { [%clk 0:16:52.2] } 23. Be3 { [%clk 0:12:11.1] } 23... d5 { [%clk 0:14:14.8] } 24. Bf4 { [%clk 0:10:54.1] } 24... Qa7+ { [%clk 0:14:16.2] } 25. Kh2 { [%clk 0:10:44.2] } 25... dxe4 { [%clk 0:14:10.8] } 26. Qxe4 { [%clk 0:10:37.3] } 26... g5 { [%clk 0:14:10.6] } 27. Qb7 { [%clk 0:08:34.6] } 27... Qxb7 { [%clk 0:13:51.9] } 28. Bxb7 { [%clk 0:08:38.9] } 28... gxf4 { [%clk 0:14:00] } 29. Bxc8 { [%clk 0:08:44.1] } 29... fxg3+ { [%clk 0:14:08.3] } 30. Kxg3 { [%clk 0:08:50.1] } 30... Rxc8 { [%clk 0:14:15.9] } 31. Rfe1 { [%clk 0:08:20.9] } 31... Bf6 { [%clk 0:13:50.7] } 32. Re4 { [%clk 0:07:35.1] } 32... Nb2 { [%clk 0:13:28.7] } 33. Re3 { [%clk 0:07:06.2] } 33... Bg5 { [%clk 0:13:27.6] } 34. Rce1 { [%clk 0:06:31.5] } 34... Bxe3 { [%clk 0:13:13.9] } 35. Rxe3 { [%clk 0:06:39.1] } 35... Kf8 { [%clk 0:13:21.1] } 36. f6 { [%clk 0:06:38.3] } 36... exf6 { [%clk 0:13:20.2] } 37. Rf3 { [%clk 0:06:44.9] } 37... Kg7 { [%clk 0:13:23] } 38. Re3 { [%clk 0:06:34.1] } 38... Nd1 { [%clk 0:13:09.2] } 39. Re7 { [%clk 0:06:32.3] } 39... Rxc3+ { [%clk 0:13:14] } 40. Kh2 { [%clk 0:06:21.6] } 40... Nf2 { [%clk 0:13:16.5] } 41. Ra7 { [%clk 0:06:23.2] } 41... Rc6 { [%clk 0:13:24.3] } 42. Rd7 { [%clk 0:06:18.3] } 42... Ne4 { [%clk 0:13:19.5] } 43. Kg2 { [%clk 0:06:17.5] } 43... Nc3 { [%clk 0:13:23.2] } 0-1

[Event "Live Chess"]
[Site "Chess.com"]
[Date "2021.02.28"]
[Round "-"]
[White "Pok Lo, Wang"]
[Black "Campbell, Alistair W I"]
[Result "0-1"]
[BlackElo "1607"]
[CurrentPosition "8/5p1p/8/6p1/5pP1/pp2kP2/7P/1K6 w - -"]
[ECO "D00"]
[ECOUrl "https://www.chess.com/openings/Queens-Pawn-Opening-Chigorin-Variation-2...Nf6-3.Bf4"]
[EndDate "2021.02.28"]
[EndTime "14:39:08"]
[Link "https://www.chess.com/live/game/8259863009"]
[StartTime "14:01:41"]
[Termination "AWICPleaseChange won by resignation"]
[TimeControl "1500+10"]
[Timezone "UTC"]
[UTCDate "2021.02.28"]
[UTCTime "14:01:41"]
[WhiteElo "985"]

1. d4 { [%clk 0:25:10] } 1... d5 { [%clk 0:25:10] } 2. Nc3 { [%clk 0:25:18.1] } 2... Nf6 { [%clk 0:25:17] } 3. Bf4 { [%clk 0:25:27] } 3... e6 { [%clk 0:25:13.4] } 4. e3 { [%clk 0:25:34.5] } 4... Bd6 { [%clk 0:24:50.6] } 5. Nf3 { [%clk 0:25:35.6] } 5... Bxf4 { [%clk 0:24:58.1] } 6. exf4 { [%clk 0:25:44] } 6... O-O { [%clk 0:25:05.2] } 7. g3 { [%clk 0:25:53] } 7... Nbd7 { [%clk 0:25:13.5] } 8. Bg2 { [%clk 0:26:01.7] } 8... c5 { [%clk 0:25:21.5] } 9. O-O { [%clk 0:26:05.9] } 9... b6 { [%clk 0:25:20.8] } 10. Rc1 { [%clk 0:26:07.3] } 10... Bb7 { [%clk 0:25:05.2] } 11. Ne2 { [%clk 0:25:33.6] } 11... Rc8 { [%clk 0:24:53.8] } 12. c4 { [%clk 0:25:36.1] } 12... cxd4 { [%clk 0:24:31.5] } 13. cxd5 { [%clk 0:25:34] } 13... Nxd5 { [%clk 0:23:57.6] } 14. Nfxd4 { [%clk 0:25:02.2] } 14... N7f6 { [%clk 0:23:09.7] } 15. Nb5 { [%clk 0:23:52.8] } 15... Rxc1 { [%clk 0:22:23.4] } 16. Qxc1 { [%clk 0:23:22.6] } 16... Qd7 { [%clk 0:21:18.7] } 17. Nbc3 { [%clk 0:22:21.3] } 17... Rc8 { [%clk 0:21:04.8] } 18. Rd1 { [%clk 0:22:13] } 18... Qe7 { [%clk 0:20:28.7] } 19. Qd2 { [%clk 0:20:16.9] } 19... g6 { [%clk 0:19:49.9] } 20. a3 { [%clk 0:19:16] } 20... Nxc3 { [%clk 0:19:02.1] } 21. Nxc3 { [%clk 0:19:19.1] } 21... Bxg2 { [%clk 0:18:58.4] } 22. Kxg2 { [%clk 0:19:27.6] } 22... Qb7+ { [%clk 0:18:48.3] } 23. Kg1 { [%clk 0:19:06.6] } 23... Ne4 { [%clk 0:17:39.2] } 24. Nxe4 { [%clk 0:18:56.1] } 24... Qxe4 { [%clk 0:17:45.8] } 25. Rc1 { [%clk 0:18:04.3] } 25... Rxc1+ { [%clk 0:16:51] } 26. Qxc1 { [%clk 0:18:12] } 26... Qd4 { [%clk 0:15:42.2] } 27. Qc8+ { [%clk 0:17:52.8] } 27... Kg7 { [%clk 0:15:47.4] } 28. Qc3 { [%clk 0:17:53.6] } 28... Qxc3 { [%clk 0:15:53.3] } 29. bxc3 { [%clk 0:18:02.1] } 29... Kf6 { [%clk 0:15:59.2] } 30. g4 { [%clk 0:18:04.3] } 30... e5 { [%clk 0:15:53.9] } 31. Kf1 { [%clk 0:17:36.3] } 31... exf4 { [%clk 0:15:54.6] } 32. f3 { [%clk 0:17:40.3] } 32... g5 { [%clk 0:16:00.5] } 33. Ke2 { [%clk 0:17:49.2] } 33... Ke5 { [%clk 0:16:08.1] } 34. Kd2 { [%clk 0:17:29.3] } 34... Kd5 { [%clk 0:15:36] } 35. Kd3 { [%clk 0:16:23] } 35... b5 { [%clk 0:15:40.3] } 36. Kc2 { [%clk 0:15:15.5] } 36... Kc4 { [%clk 0:15:47.7] } 37. Kd2 { [%clk 0:15:08.5] } 37... Kb3 { [%clk 0:15:53.8] } 38. Kd3 { [%clk 0:15:15.7] } 38... Kxa3 { [%clk 0:16:01.4] } 39. Kc2 { [%clk 0:14:22.5] } 39... Ka4 { [%clk 0:16:03.4] } 40. Kb2 { [%clk 0:14:22.1] } 40... Ka5 { [%clk 0:16:09.8] } 41. Kb3 { [%clk 0:14:15.6] } 41... Kb6 { [%clk 0:16:18.2] } 42. Ka3 { [%clk 0:14:03.9] } 42... Kc5 { [%clk 0:16:25] } 43. Kb3 { [%clk 0:14:10.1] } 43... a5 { [%clk 0:16:32.5] } 44. Kc2 { [%clk 0:13:55] } 44... Kc4 { [%clk 0:16:35.9] } 45. Kd2 { [%clk 0:13:50.6] } 45... a4 { [%clk 0:16:43.8] } 46. Kc2 { [%clk 0:13:47.5] } 46... a3 { [%clk 0:16:49.3] } 47. Kb1 { [%clk 0:12:31.9] } 47... Kxc3 { [%clk 0:16:56.5] } 48. Ka1 { [%clk 0:12:33.2] } 48... b4 { [%clk 0:17:01.7] } 49. Kb1 { [%clk 0:12:36.6] } 49... b3 { [%clk 0:17:10.1] } 50. Ka1 { [%clk 0:12:33.3] } 50... Kd3 { [%clk 0:17:18.2] } 51. Kb1 { [%clk 0:12:37.4] } 51... Ke3 { [%clk 0:17:27.1] } 0-1